Workbook

Sheet MATERIA PRIMA Y MATERIALES
A1: RESTAURANTE CAMINOS DE HERRADURA
A3: INVENTARIOS
D9: CODIGO | E9: MATERIA PRIMA
D10: 1.1.04.01 | E10: ARROZ
D11: 1.1.04.02 | E11: ACEITE
D12: 1.1.04.03 | E12: AZUCAR
D13: 1.1.04.04 | E13: LOMO
D14: 1.1.04.05 | E14: PAPAS
D15: 1.1.04.06 | E15: POLLO
D16: 1.1.04.07 | E16: #'M7'!A1
D17: 1.1.04.08 | E17: #'M8'!A1
D18: 1.1.04.09 | E18: #'M9'!A1
D19: 1.1.04.10 | E19: #'M10'!A1
D20: 1.1.04.11 | E20: #'M11'!A1
D21: 1.1.04.12 | E21: #'M12'!A1
D22: 1.1.04.13 | E22: #'M13'!A1
D23: 1.1.04.14 | E23: #'M14'!A1
D24: 1.1.04.15 | E24: #'M15'!A1
D25: 1.1.04.16 | E25: #'M16'!A1
D26: 1.1.04.17 | E26: #'M17'!A1
D27: 1.1.04.18 | E27: #'M18'!A1
D28: 1.1.04.19 | E28: #'M19'!A1
D29: 1.1.04.20 | E29: #'M20'!A1
D30: 1.1.04.21 | E30: #'M21'!A1
D31: 1.1.04.22 | E31: #'M22'!A1
D32: 1.1.04.23 | E32: #'M23'!A1
D33: 1.1.04.24 | E33: #'M24'!A1
D34: 1.1.04.25 | E34: #'M25'!A1
D35: 1.1.04.26 | E35: #'M26'!A1
D36: 1.1.04.27 | E36: #'M27'!A1
D37: 1.1.04.28 | E37: #'M28'!A1
D38: 1.1.04.29 | E38: #'M29'!A1
D39: 1.1.04.30 | E39: #'M30'!A1
D40: 1.1.04.31 | E40: #'M31'!A1
D41: 1.1.04.32 | E41: #'M32'!A1
D42: 1.1.04.33 | E42: #'M33'!A1
D43: 1.1.04.34 | E43: #'M34'!A1
D44: 1.1.04.35 | E44: #'M35'!A1
D45: 1.1.04.36 | E45: #'M36'!A1
D46: 1.1.04.37 | E46: #'M37'!A1
D47: 1.1.04.38 | E47: #'M38'!A1
D48: 1.1.04.39 | E48: #'M39'!A1
D49: 1.1.04.40 | E49: #'M40'!A1
D50: 1.1.04.41 | E50: #'M41'!A1
D51: 1.1.04.42 | E51: #'M42'!A1
D52: 1.1.04.43 | E52: #'M43'!A1
D53: 1.1.04.44 | E53: #'M44'!A1
D54: 1.1.04.45 | E54: #'M45'!A1
D55: 1.1.04.46 | E55: #'M46'!A1
D56: 1.1.04.47 | E56: #'M47'!A1
D57: 1.1.04.48 | E57: #'M48'!A1
D58: 1.1.04.49 | E58: #'M49'!A1
D59: 1.1.04.50 | E59: #'M50'!A1
D60: 1.1.04.51 | E60: #'M51'!A1
D61: 1.1.04.52 | E61: #'M52'!A1
D62: 1.1.04.53 | E62: #'M53'!A1

Sheet M1
A1: RESTAURANTE CAMINOS DE HERRADURA
A3: KARDEX
A5: Artículo: | B5: ='MATERIA PRIMA Y MATERIALES'!E10 -> ARROZ | E5: Unidad de medida: | G5: libras | I5: Codigo: | J5: ='MATERIA PRIMA Y MATERIALES'!D10 -> 1.1.04.01
A6: Método: | B6: PROMEDIO PONDERADO | E6: Fecha de Corte: | G6: =NOW() -> 2010-06-10T17:02:54.760
A8: FECHA | B8: ORDEN DE PRODUCCIÓN | C8: DETALLE | J8: EXISTENCIAS | M8: RESPONSABLE
D9: CANT. | E9: P.U. | F9: P.T. | G9: CANT. | H9: P.U. | I9: P.T. | J9: CANT. | K9: P.U. | L9: P.T.
J10: 79.8 | K10: $0.35 | L10: $27.93
A12: 2010-02-01 | C12: SITUACIÓN INICIAL | D12: 79.8 | E12: $0.35 | F12: =$D$12*$E$12 -> $27.93 | J12: =J13+D12 -> 79.8 | K12: =$L$12/$J$12 -> $0.35 | L12: =L13+F12 -> $27.93

Sheet M2
A1: RESTAURANTE CAMINOS DE HERRADURA
A3: KARDEX
A5: Artículo: | B5: ='MATERIA PRIMA Y MATERIALES'!E11 -> ACEITE | E5: Unidad de medida: | G5: LIBRAS | I5: Codigo: | J5: ='MATERIA PRIMA Y MATERIALES'!D11 -> 1.1.04.02
A6: Método: | B6: PROMEDIO PONDERADO | E6: Fecha de Corte: | G6: =NOW() -> 2010-06-10T17:02:54.760
A8: FECHA | B8: ORDEN DE PRODUCCIÓN | C8: DETALLE | J8: EXISTENCIAS | M8: RESPONSABLE
D9: CANT. | E9: P.U. | F9: P.T. | G9: CANT. | H9: P.U. | I9: P.T. | J9: CANT. | K9: P.U. | L9: P.T.
J10: 65 | K10: $0.76 | L10: $49.40
A12: 2010-02-01 | C12: SITUACIÓN INICIAL | D12: 65 | E12: $0.76 | F12: =$D$12*$E$12 -> $49.40 | J12: =J13+D12 -> 65 | K12: =$L$12/$J$12 -> $0.76 | L12: =L13+F12 -> $49.40

Sheet M3
A1: RESTAURANTE CAMINOS DE HERRADURA
A3: KARDEX
A5: Artículo: | B5: ='MATERIA PRIMA Y MATERIALES'!E12 -> AZUCAR | E5: Unidad de medida: | G5: LIBRAS | I5: Codigo: | J5: ='MATERIA PRIMA Y MATERIALES'!D12 -> 1.1.04.03
A6: Método: | B6: PROMEDIO PONDERADO | E6: Fecha de Corte: | G6: =NOW() -> 2010-06-10T17:02:54.760
A8: FECHA | B8: ORDEN DE PRODUCCIÓN | C8: DETALLE | D8: ENTRADAS | G8: SALIDAS | J8: EXISTENCIAS | M8: RESPONSABLE
D9: CANT. | E9: P.U. | F9: P.T. | G9: CANT. | H9: P.U. | I9: P.T. | J9: CANT. | K9: P.U. | L9: P.T.
J10: 50.5 | K10: $0.33 | L10: $16.67
A12: 2010-02-01 | C12: SITUACIÓN INICIAL | D12: 50.5 | E12: $0.33 | F12: =$D$12*$E$12 -> $16.67 | J12: =J13+D12 -> 50.5 | K12: =$L$12/$J$12 -> $0.33 | L12: =L13+F12 -> $16.67

Sheet M4
A1: RESTAURANTE CAMINOS DE HERRADURA
A3: KARDEX
A5: Artículo: | B5: ='MATERIA PRIMA Y MATERIALES'!E13 -> LOMO | E5: Unidad de medida: | G5: LIBRAS | I5: Codigo: | J5: ='MATERIA PRIMA Y MATERIALES'!D13 -> 1.1.04.04
A6: Método: | B6: PROMEDIO PONDERADO | E6: Fecha de Corte: | G6: =NOW() -> 2010-06-10T17:02:54.760
A8: FECHA | B8: ORDEN DE PRODUCCIÓN | C8: DETALLE | J8: EXISTENCIAS | M8: RESPONSABLE
D9: CANT. | E9: P.U. | F9: P.T. | G9: CANT. | H9: P.U. | I9: P.T. | J9: CANT. | K9: P.U. | L9: P.T.
J10: 11 | K10: $2.00 | L10: $22.00
A12: 2010-02-01 | C12: SITUACIÓN INICIAL | D12: 11 | E12: $2.00 | F12: =$D$12*$E$12 -> $22.00 | J12: =J13+D12 -> 11 | K12: =$L$12/$J$12 -> $2.00 | L12: =L13+F12 -> $22.00

Sheet M5
A1: RESTAURANTE CAMINOS DE HERRADURA
A3: KARDEX
A5: Artículo: | B5: ='MATERIA PRIMA Y MATERIALES'!E14 -> PAPAS | E5: Unidad de medida: | G5: LIBRAS | I5: Codigo: | J5: ='MATERIA PRIMA Y MATERIALES'!D14 -> 1.1.04.05
A6: Método: | B6: PROMEDIO PONDERADO | E6: Fecha de Corte: | G6: =NOW() -> 2010-06-10T17:02:54.760
A8: FECHA | B8: ORDEN DE PRODUCCIÓN | C8: DETALLE | J8: EXISTENCIAS | M8: RESPONSABLE
D9: CANT. | E9: P.U. | F9: P.T. | G9: CANT. | H9: P.U. | I9: P.T. | J9: CANT. | K9: P.U. | L9: P.T.
J10: 200 | K10: $0.12 | L10: $24.00
A12: 2010-02-01 | C12: SITUACIÓN INICIAL | D12: 200 | E12: $0.12 | F12: =$D$12*$E$12 -> $24.00 | J12: =J13+D12 -> 200 | K12: =$L$12/$J$12 -> $0.12 | L12: =L13+F12 -> $24.00

Sheet M6
A1: RESTAURANTE CAMINOS DE HERRADURA
A3: KARDEX
A5: Artículo: | B5: ='MATERIA PRIMA Y MATERIALES'!E15 -> POLLO | E5: Unidad de medida: | G5: LIBRAS | I5: Codigo: | J5: ='MATERIA PRIMA Y MATERIALES'!D15 -> 1.1.04.06
A6: Método: | B6: PROMEDIO PONDERADO | E6: Fecha de Corte: | G6: =NOW() -> 2010-06-10T17:02:54.760
A8: FECHA | B8: ORDEN DE PRODUCCIÓN | C8: DETALLE | J8: EXISTENCIAS | M8: RESPONSABLE
D9: CANT. | E9: P.U. | F9: P.T. | G9: CANT. | H9: P.U. | I9: P.T. | J9: CANT. | K9: P.U. | L9: P.T.

Sheet M7
A1: RESTAURANTE CAMINOS DE HERRADURA
A3: KARDEX
A5: Artículo: | B5: ='MATERIA PRIMA Y MATERIALES'!E16 -> #'M7'!A1 | E5: Unidad de medida: | G5: LIBRAS | I5: Codigo: | J5: ='MATERIA PRIMA Y MATERIALES'!D16 -> 1.1.04.07
A6: Método: | B6: PROMEDIO PONDERADO | E6: Fecha de Corte: | G6: =NOW() -> 2010-06-10T17:02:54.760
A8: FECHA | B8: ORDEN DE PRODUCCIÓN | C8: DETALLE | J8: EXISTENCIAS | M8: RESPONSABLE
D9: CANT. | E9: P.U. | F9: P.T. | G9: CANT. | H9: P.U. | I9: P.T. | J9: CANT. | K9: P.U. | L9: P.T.

Sheet M8
A1: RESTAURANTE CAMINOS DE HERRADURA
A3: KARDEX
A5: Artículo: | B5: ='MATERIA PRIMA Y MATERIALES'!E17 -> #'M8'!A1 | E5: Unidad de medida: | G5: LIBRAS | I5: Codigo: | J5: ='MATERIA PRIMA Y MATERIALES'!D17 -> 1.1.04.08
A6: Método: | B6: PROMEDIO PONDERADO | E6: Fecha de Corte: | G6: =NOW() -> 2010-06-10T17:02:54.760
A8: FECHA | B8: ORDEN DE PRODUCCIÓN | C8: DETALLE | J8: EXISTENCIAS | M8: RESPONSABLE
D9: CANT. | E9: P.U. | F9: P.T. | G9: CANT. | H9: P.U. | I9: P.T. | J9: CANT. | K9: P.U. | L9: P.T.

Sheet M9
A1: RESTAURANTE CAMINOS DE HERRADURA
A3: KARDEX
A5: Artículo: | B5: ='MATERIA PRIMA Y MATERIALES'!E18 -> #'M9'!A1 | E5: Unidad de medida: | G5: LIBRAS | I5: Codigo: | J5: ='MATERIA PRIMA Y MATERIALES'!D18 -> 1.1.04.09
A6: Método: | B6: PROMEDIO PONDERADO | E6: Fecha de Corte: | G6: =NOW() -> 2010-06-10T17:02:54.760
A8: FECHA | B8: ORDEN DE PRODUCCIÓN | C8: DETALLE | J8: EXISTENCIAS | M8: RESPONSABLE
D9: CANT. | E9: P.U. | F9: P.T. | G9: CANT. | H9: P.U. | I9: P.T. | J9: CANT. | K9: P.U. | L9: P.T.

Sheet M10
A1: RESTAURANTE CAMINOS DE HERRADURA
A3: KARDEX
A5: Artículo: | B5: ='MATERIA PRIMA Y MATERIALES'!E19 -> #'M10'!A1 | E5: Unidad de medida: | G5: LIBRAS | I5: Codigo: | J5: ='MATERIA PRIMA Y MATERIALES'!D19 -> 1.1.04.10
A6: Método: | B6: PROMEDIO PONDERADO | E6: Fecha de Corte: | G6: =NOW() -> 2010-06-10T17:02:54.760
A8: FECHA | B8: ORDEN DE PRODUCCIÓN | C8: DETALLE | J8: EXISTENCIAS | M8: RESPONSABLE
D9: CANT. | E9: P.U. | F9: P.T. | G9: CANT. | H9: P.U. | I9: P.T. | J9: CANT. | K9: P.U. | L9: P.T.

Sheet M11
A1: RESTAURANTE CAMINOS DE HERRADURA
A3: KARDEX
A5: Artículo: | B5: ='MATERIA PRIMA Y MATERIALES'!E20 -> #'M11'!A1 | E5: Unidad de medida: | G5: LIBRAS | I5: Codigo: | J5: ='MATERIA PRIMA Y MATERIALES'!D20 -> 1.1.04.11
A6: Método: | B6: PROMEDIO PONDERADO | E6: Fecha de Corte: | G6: =NOW() -> 2010-06-10T17:02:54.760
A8: FECHA | B8: ORDEN DE PRODUCCIÓN | C8: DETALLE | J8: EXISTENCIAS | M8: RESPONSABLE
D9: CANT. | E9: P.U. | F9: P.T. | G9: CANT. | H9: P.U. | I9: P.T. | J9: CANT. | K9: P.U. | L9: P.T.

Sheet M12
A1: RESTAURANTE CAMINOS DE HERRADURA
A3: KARDEX
A5: Artículo: | B5: ='MATERIA PRIMA Y MATERIALES'!E21 -> #'M12'!A1 | E5: Unidad de medida: | G5: LIBRAS | I5: Codigo: | J5: ='MATERIA PRIMA Y MATERIALES'!D21 -> 1.1.04.12
A6: Método: | B6: PROMEDIO PONDERADO | E6: Fecha de Corte: | G6: =NOW() -> 2010-06-10T17:02:54.760
A8: FECHA | B8: ORDEN DE PRODUCCIÓN | C8: DETALLE | J8: EXISTENCIAS | M8: RESPONSABLE
D9: CANT. | E9: P.U. | F9: P.T. | G9: CANT. | H9: P.U. | I9: P.T. | J9: CANT. | K9: P.U. | L9: P.T.

Sheet M13
A1: RESTAURANTE CAMINOS DE HERRADURA
A3: KARDEX
A5: Artículo: | B5: ='MATERIA PRIMA Y MATERIALES'!E22 -> #'M13'!A1 | E5: Unidad de medida: | G5: LIBRAS | I5: Codigo: | J5: ='MATERIA PRIMA Y MATERIALES'!D22 -> 1.1.04.13
A6: Método: | B6: PROMEDIO PONDERADO | E6: Fecha de Corte: | G6: =NOW() -> 2010-06-10T17:02:54.760
A8: FECHA | B8: ORDEN DE PRODUCCIÓN | C8: DETALLE | J8: EXISTENCIAS | M8: RESPONSABLE
D9: CANT. | E9: P.U. | F9: P.T. | G9: CANT. | H9: P.U. | I9: P.T. | J9: CANT. | K9: P.U. | L9: P.T.

Sheet M14
A1: RESTAURANTE CAMINOS DE HERRADURA
A3: KARDEX
A5: Artículo: | B5: ='MATERIA PRIMA Y MATERIALES'!E23 -> #'M14'!A1 | E5: Unidad de medida: | G5: LIBRAS | I5: Codigo: | J5: ='MATERIA PRIMA Y MATERIALES'!D23 -> 1.1.04.14
A6: Método: | B6: PROMEDIO PONDERADO | E6: Fecha de Corte: | G6: =NOW() -> 2010-06-10T17:02:54.760
A8: FECHA | B8: ORDEN DE PRODUCCIÓN | C8: DETALLE | J8: EXISTENCIAS | M8: RESPONSABLE
D9: CANT. | E9: P.U. | F9: P.T. | G9: CANT. | H9: P.U. | I9: P.T. | J9: CANT. | K9: P.U. | L9: P.T.

Sheet M15
A1: RESTAURANTE CAMINOS DE HERRADURA
A3: KARDEX
A5: Artículo: | B5: ='MATERIA PRIMA Y MATERIALES'!E24 -> #'M15'!A1 | E5: Unidad de medida: | G5: LIBRAS | I5: Codigo: | J5: ='MATERIA PRIMA Y MATERIALES'!D24 -> 1.1.04.15
A6: Método: | B6: PROMEDIO PONDERADO | E6: Fecha de Corte: | G6: =NOW() -> 2010-06-10T17:02:54.760
A8: FECHA | B8: ORDEN DE PRODUCCIÓN | C8: DETALLE | J8: EXISTENCIAS | M8: RESPONSABLE
D9: CANT. | E9: P.U. | F9: P.T. | G9: CANT. | H9: P.U. | I9: P.T. | J9: CANT. | K9: P.U. | L9: P.T.

Sheet M16
A1: RESTAURANTE CAMINOS DE HERRADURA
A3: KARDEX
A5: Artículo: | B5: ='MATERIA PRIMA Y MATERIALES'!E25 -> #'M16'!A1 | E5: Unidad de medida: | G5: LIBRAS | I5: Codigo: | J5: ='MATERIA PRIMA Y MATERIALES'!D25 -> 1.1.04.16
A6: Método: | B6: PROMEDIO PONDERADO | E6: Fecha de Corte: | G6: =NOW() -> 2010-06-10T17:02:54.760
A8: FECHA | B8: ORDEN DE PRODUCCIÓN | C8: DETALLE | J8: EXISTENCIAS | M8: RESPONSABLE
D9: CANT. | E9: P.U. | F9: P.T. | G9: CANT. | H9: P.U. | I9: P.T. | J9: CANT. | K9: P.U. | L9: P.T.

Sheet M17
A1: RESTAURANTE CAMINOS DE HERRADURA
A3: KARDEX
A5: Artículo: | B5: ='MATERIA PRIMA Y MATERIALES'!E26 -> #'M17'!A1 | E5: Unidad de medida: | G5: LIBRAS | I5: Codigo: | J5: ='MATERIA PRIMA Y MATERIALES'!D26 -> 1.1.04.17
A6: Método: | B6: PROMEDIO PONDERADO | E6: Fecha de Corte: | G6: =NOW() -> 2010-06-10T17:02:54.760
A8: FECHA | B8: ORDEN DE PRODUCCIÓN | C8: DETALLE | J8: EXISTENCIAS | M8: RESPONSABLE
D9: CANT. | E9: P.U. | F9: P.T. | G9: CANT. | H9: P.U. | I9: P.T. | J9: CANT. | K9: P.U. | L9: P.T.

Sheet M18
A1: RESTAURANTE CAMINOS DE HERRADURA
A3: KARDEX
A5: Artículo: | B5: ='MATERIA PRIMA Y MATERIALES'!E27 -> #'M18'!A1 | E5: Unidad de medida: | G5: LIBRAS | I5: Codigo: | J5: ='MATERIA PRIMA Y MATERIALES'!D27 -> 1.1.04.18
A6: Método: | B6: PROMEDIO PONDERADO | E6: Fecha de Corte: | G6: =NOW() -> 2010-06-10T17:02:54.760
A8: FECHA | B8: ORDEN DE PRODUCCIÓN | C8: DETALLE | J8: EXISTENCIAS | M8: RESPONSABLE
D9: CANT. | E9: P.U. | F9: P.T. | G9: CANT. | H9: P.U. | I9: P.T. | J9: CANT. | K9: P.U. | L9: P.T.

Sheet M19
A1: RESTAURANTE CAMINOS DE HERRADURA
A3: KARDEX
A5: Artículo: | B5: ='MATERIA PRIMA Y MATERIALES'!E28 -> #'M19'!A1 | E5: Unidad de medida: | G5: LIBRAS | I5: Codigo: | J5: ='MATERIA PRIMA Y MATERIALES'!D28 -> 1.1.04.19
A6: Método: | B6: PROMEDIO PONDERADO | E6: Fecha de Corte: | G6: =NOW() -> 2010-06-10T17:02:54.760
A8: FECHA | B8: ORDEN DE PRODUCCIÓN | C8: DETALLE | J8: EXISTENCIAS | M8: RESPONSABLE
D9: CANT. | E9: P.U. | F9: P.T. | G9: CANT. | H9: P.U. | I9: P.T. | J9: CANT. | K9: P.U. | L9: P.T.

Sheet M20
A1: RESTAURANTE CAMINOS DE HERRADURA
A3: KARDEX
A5: Artículo: | B5: ='MATERIA PRIMA Y MATERIALES'!E29 -> #'M20'!A1 | E5: Unidad de medida: | G5: LIBRAS | I5: Codigo: | J5: ='MATERIA PRIMA Y MATERIALES'!D29 -> 1.1.04.20
A6: Método: | B6: PROMEDIO PONDERADO | E6: Fecha de Corte: | G6: =NOW() -> 2010-06-10T17:02:54.760
A8: FECHA | B8: ORDEN DE PRODUCCIÓN | C8: DETALLE | J8: EXISTENCIAS | M8: RESPONSABLE
D9: CANT. | E9: P.U. | F9: P.T. | G9: CANT. | H9: P.U. | I9: P.T. | J9: CANT. | K9: P.U. | L9: P.T.

Sheet M21
A1: RESTAURANTE CAMINOS DE HERRADURA
A3: KARDEX
A5: Artículo: | B5: ='MATERIA PRIMA Y MATERIALES'!E30 -> #'M21'!A1 | E5: Unidad de medida: | G5: LIBRAS | I5: Codigo: | J5: ='MATERIA PRIMA Y MATERIALES'!D30 -> 1.1.04.21
A6: Método: | B6: PROMEDIO PONDERADO | E6: Fecha de Corte: | G6: =NOW() -> 2010-06-10T17:02:54.760
A8: FECHA | B8: ORDEN DE PRODUCCIÓN | C8: DETALLE | J8: EXISTENCIAS | M8: RESPONSABLE
D9: CANT. | E9: P.U. | F9: P.T. | G9: CANT. | H9: P.U. | I9: P.T. | J9: CANT. | K9: P.U. | L9: P.T.

Sheet M22
A1: RESTAURANTE CAMINOS DE HERRADURA
A3: KARDEX
A5: Artículo: | B5: ='MATERIA PRIMA Y MATERIALES'!E31 -> #'M22'!A1 | E5: Unidad de medida: | G5: LIBRAS | I5: Codigo: | J5: ='MATERIA PRIMA Y MATERIALES'!D31 -> 1.1.04.22
A6: Método: | B6: PROMEDIO PONDERADO | E6: Fecha de Corte: | G6: =NOW() -> 2010-06-10T17:02:54.760
A8: FECHA | B8: ORDEN DE PRODUCCIÓN | C8: DETALLE | J8: EXISTENCIAS | M8: RESPONSABLE
D9: CANT. | E9: P.U. | F9: P.T. | G9: CANT. | H9: P.U. | I9: P.T. | J9: CANT. | K9: P.U. | L9: P.T.

Sheet M23
A1: RESTAURANTE CAMINOS DE HERRADURA
A3: KARDEX
A5: Artículo: | B5: ='MATERIA PRIMA Y MATERIALES'!E32 -> #'M23'!A1 | E5: Unidad de medida: | G5: LIBRAS | I5: Codigo: | J5: ='MATERIA PRIMA Y MATERIALES'!D32 -> 1.1.04.23
A6: Método: | B6: PROMEDIO PONDERADO | E6: Fecha de Corte: | G6: =NOW() -> 2010-06-10T17:02:54.760
A8: FECHA | B8: ORDEN DE PRODUCCIÓN | C8: DETALLE | J8: EXISTENCIAS | M8: RESPONSABLE
D9: CANT. | E9: P.U. | F9: P.T. | G9: CANT. | H9: P.U. | I9: P.T. | J9: CANT. | K9: P.U. | L9: P.T.

Sheet M24
A1: RESTAURANTE CAMINOS DE HERRADURA
A3: KARDEX
A5: Artículo: | B5: ='MATERIA PRIMA Y MATERIALES'!E33 -> #'M24'!A1 | E5: Unidad de medida: | G5: LIBRAS | I5: Codigo: | J5: ='MATERIA PRIMA Y MATERIALES'!D33 -> 1.1.04.24
A6: Método: | B6: PROMEDIO PONDERADO | E6: Fecha de Corte: | G6: =NOW() -> 2010-06-10T17:02:54.760
A8: FECHA | B8: ORDEN DE PRODUCCIÓN | C8: DETALLE | J8: EXISTENCIAS | M8: RESPONSABLE
D9: CANT. | E9: P.U. | F9: P.T. | G9: CANT. | H9: P.U. | I9: P.T. | J9: CANT. | K9: P.U. | L9: P.T.

Sheet M25
A1: RESTAURANTE CAMINOS DE HERRADURA
A3: KARDEX
A5: Artículo: | B5: ='MATERIA PRIMA Y MATERIALES'!E34 -> #'M25'!A1 | E5: Unidad de medida: | G5: LIBRAS | I5: Codigo: | J5: ='MATERIA PRIMA Y MATERIALES'!D34 -> 1.1.04.25
A6: Método: | B6: PROMEDIO PONDERADO | E6: Fecha de Corte: | G6: =NOW() -> 2010-06-10T17:02:54.760
A8: FECHA | B8: ORDEN DE PRODUCCIÓN | C8: DETALLE | J8: EXISTENCIAS | M8: RESPONSABLE
D9: CANT. | E9: P.U. | F9: P.T. | G9: CANT. | H9: P.U. | I9: P.T. | J9: CANT. | K9: P.U. | L9: P.T.

Sheet M26
A1: RESTAURANTE CAMINOS DE HERRADURA
A3: KARDEX
A5: Artículo: | B5: ='MATERIA PRIMA Y MATERIALES'!E35 -> #'M26'!A1 | E5: Unidad de medida: | G5: LIBRAS | I5: Codigo: | J5: ='MATERIA PRIMA Y MATERIALES'!D35 -> 1.1.04.26
A6: Método: | B6: PROMEDIO PONDERADO | E6: Fecha de Corte: | G6: =NOW() -> 2010-06-10T17:02:54.760
A8: FECHA | B8: ORDEN DE PRODUCCIÓN | C8: DETALLE | J8: EXISTENCIAS | M8: RESPONSABLE
D9: CANT. | E9: P.U. | F9: P.T. | G9: CANT. | H9: P.U. | I9: P.T. | J9: CANT. | K9: P.U. | L9: P.T.

Sheet M27
A1: RESTAURANTE CAMINOS DE HERRADURA
A3: KARDEX
A5: Artículo: | B5: ='MATERIA PRIMA Y MATERIALES'!E36 -> #'M27'!A1 | E5: Unidad de medida: | G5: LIBRAS | I5: Codigo: | J5: ='MATERIA PRIMA Y MATERIALES'!D36 -> 1.1.04.27
A6: Método: | B6: PROMEDIO PONDERADO | E6: Fecha de Corte: | G6: =NOW() -> 2010-06-10T17:02:54.760
A8: FECHA | B8: ORDEN DE PRODUCCIÓN | C8: DETALLE | J8: EXISTENCIAS | M8: RESPONSABLE
D9: CANT. | E9: P.U. | F9: P.T. | G9: CANT. | H9: P.U. | I9: P.T. | J9: CANT. | K9: P.U. | L9: P.T.

Sheet M28
A1: RESTAURANTE CAMINOS DE HERRADURA
A3: KARDEX
A5: Artículo: | B5: ='MATERIA PRIMA Y MATERIALES'!E37 -> #'M28'!A1 | E5: Unidad de medida: | G5: LIBRAS | I5: Codigo: | J5: ='MATERIA PRIMA Y MATERIALES'!D37 -> 1.1.04.28
A6: Método: | B6: PROMEDIO PONDERADO | E6: Fecha de Corte: | G6: =NOW() -> 2010-06-10T17:02:54.760
A8: FECHA | B8: ORDEN DE PRODUCCIÓN | C8: DETALLE | J8: EXISTENCIAS | M8: RESPONSABLE
D9: CANT. | E9: P.U. | F9: P.T. | G9: CANT. | H9: P.U. | I9: P.T. | J9: CANT. | K9: P.U. | L9: P.T.

Sheet M29
A1: RESTAURANTE CAMINOS DE HERRADURA
A3: KARDEX
A5: Artículo: | B5: ='MATERIA PRIMA Y MATERIALES'!E38 -> #'M29'!A1 | E5: Unidad de medida: | G5: LIBRAS | I5: Codigo: | J5: ='MATERIA PRIMA Y MATERIALES'!D38 -> 1.1.04.29
A6: Método: | B6: PROMEDIO PONDERADO | E6: Fecha de Corte: | G6: =NOW() -> 2010-06-10T17:02:54.760
A8: FECHA | B8: ORDEN DE PRODUCCIÓN | C8: DETALLE | J8: EXISTENCIAS | M8: RESPONSABLE
D9: CANT. | E9: P.U. | F9: P.T. | G9: CANT. | H9: P.U. | I9: P.T. | J9: CANT. | K9: P.U. | L9: P.T.

Sheet M30
A1: RESTAURANTE CAMINOS DE HERRADURA
A3: KARDEX
A5: Artículo: | B5: ='MATERIA PRIMA Y MATERIALES'!E39 -> #'M30'!A1 | E5: Unidad de medida: | G5: LIBRAS | I5: Codigo: | J5: ='MATERIA PRIMA Y MATERIALES'!D39 -> 1.1.04.30
A6: Método: | B6: PROMEDIO PONDERADO | E6: Fecha de Corte: | G6: =NOW() -> 2010-06-10T17:02:54.760
A8: FECHA | B8: ORDEN DE PRODUCCIÓN | C8: DETALLE | J8: EXISTENCIAS | M8: RESPONSABLE
D9: CANT. | E9: P.U. | F9: P.T. | G9: CANT. | H9: P.U. | I9: P.T. | J9: CANT. | K9: P.U. | L9: P.T.

Sheet M31
A1: RESTAURANTE CAMINOS DE HERRADURA
A3: KARDEX
A5: Artículo: | B5: ='MATERIA PRIMA Y MATERIALES'!E40 -> #'M31'!A1 | E5: Unidad de medida: | G5: LIBRAS | I5: Codigo: | J5: ='MATERIA PRIMA Y MATERIALES'!D40 -> 1.1.04.31
A6: Método: | B6: PROMEDIO PONDERADO | E6: Fecha de Corte: | G6: =NOW() -> 2010-06-10T17:02:54.760
A8: FECHA | B8: ORDEN DE PRODUCCIÓN | C8: DETALLE | J8: EXISTENCIAS | M8: RESPONSABLE
D9: CANT. | E9: P.U. | F9: P.T. | G9: CANT. | H9: P.U. | I9: P.T. | J9: CANT. | K9: P.U. | L9: P.T.

Sheet M32
A1: RESTAURANTE CAMINOS DE HERRADURA
A3: KARDEX
A5: Artículo: | B5: ='MATERIA PRIMA Y MATERIALES'!E41 -> #'M32'!A1 | E5: Unidad de medida: | G5: LIBRAS | I5: Codigo: | J5: ='MATERIA PRIMA Y MATERIALES'!D41 -> 1.1.04.32
A6: Método: | B6: PROMEDIO PONDERADO | E6: Fecha de Corte: | G6: =NOW() -> 2010-06-10T17:02:54.760
A8: FECHA | B8: ORDEN DE PRODUCCIÓN | C8: DETALLE | J8: EXISTENCIAS | M8: RESPONSABLE
D9: CANT. | E9: P.U. | F9: P.T. | G9: CANT. | H9: P.U. | I9: P.T. | J9: CANT. | K9: P.U. | L9: P.T.

Sheet M33
A1: RESTAURANTE CAMINOS DE HERRADURA
A3: KARDEX
A5: Artículo: | B5: ='MATERIA PRIMA Y MATERIALES'!E42 -> #'M33'!A1 | E5: Unidad de medida: | G5: LIBRAS | I5: Codigo: | J5: ='MATERIA PRIMA Y MATERIALES'!D42 -> 1.1.04.33
A6: Método: | B6: PROMEDIO PONDERADO | E6: Fecha de Corte: | G6: =NOW() -> 2010-06-10T17:02:54.760
A8: FECHA | B8: ORDEN DE PRODUCCIÓN | C8: DETALLE | J8: EXISTENCIAS | M8: RESPONSABLE
D9: CANT. | E9: P.U. | F9: P.T. | G9: CANT. | H9: P.U. | I9: P.T. | J9: CANT. | K9: P.U. | L9: P.T.

Sheet M34
A1: RESTAURANTE CAMINOS DE HERRADURA
A3: KARDEX
A5: Artículo: | B5: ='MATERIA PRIMA Y MATERIALES'!E43 -> #'M34'!A1 | E5: Unidad de medida: | G5: LIBRAS | I5: Codigo: | J5: ='MATERIA PRIMA Y MATERIALES'!D43 -> 1.1.04.34
A6: Método: | B6: PROMEDIO PONDERADO | E6: Fecha de Corte: | G6: =NOW() -> 2010-06-10T17:02:54.760
A8: FECHA | B8: ORDEN DE PRODUCCIÓN | C8: DETALLE | J8: EXISTENCIAS | M8: RESPONSABLE
D9: CANT. | E9: P.U. | F9: P.T. | G9: CANT. | H9: P.U. | I9: P.T. | J9: CANT. | K9: P.U. | L9: P.T.

Sheet M35
A1: RESTAURANTE CAMINOS DE HERRADURA
A3: KARDEX
A5: Artículo: | B5: ='MATERIA PRIMA Y MATERIALES'!E44 -> #'M35'!A1 | E5: Unidad de medida: | G5: LIBRAS | I5: Codigo: | J5: ='MATERIA PRIMA Y MATERIALES'!D44 -> 1.1.04.35
A6: Método: | B6: PROMEDIO PONDERADO | E6: Fecha de Corte: | G6: =NOW() -> 2010-06-10T17:02:54.760
A8: FECHA | B8: ORDEN DE PRODUCCIÓN | C8: DETALLE | J8: EXISTENCIAS | M8: RESPONSABLE
D9: CANT. | E9: P.U. | F9: P.T. | G9: CANT. | H9: P.U. | I9: P.T. | J9: CANT. | K9: P.U. | L9: P.T.

Sheet M36
A1: RESTAURANTE CAMINOS DE HERRADURA
A3: KARDEX
A5: Artículo: | B5: ='MATERIA PRIMA Y MATERIALES'!E45 -> #'M36'!A1 | E5: Unidad de medida: | G5: LIBRAS | I5: Codigo: | J5: ='MATERIA PRIMA Y MATERIALES'!D45 -> 1.1.04.36
A6: Método: | B6: PROMEDIO PONDERADO | E6: Fecha de Corte: | G6: =NOW() -> 2010-06-10T17:02:54.760
A8: FECHA | B8: ORDEN DE PRODUCCIÓN | C8: DETALLE | J8: EXISTENCIAS | M8: RESPONSABLE
D9: CANT. | E9: P.U. | F9: P.T. | G9: CANT. | H9: P.U. | I9: P.T. | J9: CANT. | K9: P.U. | L9: P.T.

Sheet M37
A1: RESTAURANTE CAMINOS DE HERRADURA
A3: KARDEX
A5: Artículo: | B5: ='MATERIA PRIMA Y MATERIALES'!E46 -> #'M37'!A1 | E5: Unidad de medida: | G5: LIBRAS | I5: Codigo: | J5: ='MATERIA PRIMA Y MATERIALES'!D46 -> 1.1.04.37
A6: Método: | B6: PROMEDIO PONDERADO | E6: Fecha de Corte: | G6: =NOW() -> 2010-06-10T17:02:54.760
A8: FECHA | B8: ORDEN DE PRODUCCIÓN | C8: DETALLE | J8: EXISTENCIAS | M8: RESPONSABLE
D9: CANT. | E9: P.U. | F9: P.T. | G9: CANT. | H9: P.U. | I9: P.T. | J9: CANT. | K9: P.U. | L9: P.T.

Sheet M38
A1: RESTAURANTE CAMINOS DE HERRADURA
A3: KARDEX
A5: Artículo: | B5: ='MATERIA PRIMA Y MATERIALES'!E47 -> #'M38'!A1 | E5: Unidad de medida: | G5: LIBRAS | I5: Codigo: | J5: ='MATERIA PRIMA Y MATERIALES'!D47 -> 1.1.04.38
A6: Método: | B6: PROMEDIO PONDERADO | E6: Fecha de Corte: | G6: =NOW() -> 2010-06-10T17:02:54.760
A8: FECHA | B8: ORDEN DE PRODUCCIÓN | C8: DETALLE | J8: EXISTENCIAS | M8: RESPONSABLE
D9: CANT. | E9: P.U. | F9: P.T. | G9: CANT. | H9: P.U. | I9: P.T. | J9: CANT. | K9: P.U. | L9: P.T.

Sheet M39
A1: RESTAURANTE CAMINOS DE HERRADURA
A3: KARDEX
A5: Artículo: | B5: ='MATERIA PRIMA Y MATERIALES'!E48 -> #'M39'!A1 | E5: Unidad de medida: | G5: LIBRAS | I5: Codigo: | J5: ='MATERIA PRIMA Y MATERIALES'!D48 -> 1.1.04.39
A6: Método: | B6: PROMEDIO PONDERADO | E6: Fecha de Corte: | G6: =NOW() -> 2010-06-10T17:02:54.760
A8: FECHA | B8: ORDEN DE PRODUCCIÓN | C8: DETALLE | J8: EXISTENCIAS | M8: RESPONSABLE
D9: CANT. | E9: P.U. | F9: P.T. | G9: CANT. | H9: P.U. | I9: P.T. | J9: CANT. | K9: P.U. | L9: P.T.

Sheet M40
A1: RESTAURANTE CAMINOS DE HERRADURA
A3: KARDEX
A5: Artículo: | B5: ='MATERIA PRIMA Y MATERIALES'!E49 -> #'M40'!A1 | E5: Unidad de medida: | G5: LIBRAS | I5: Codigo: | J5: ='MATERIA PRIMA Y MATERIALES'!D49 -> 1.1.04.40
A6: Método: | B6: PROMEDIO PONDERADO | E6: Fecha de Corte: | G6: =NOW() -> 2010-06-10T17:02:54.760
A8: FECHA | B8: ORDEN DE PRODUCCIÓN | C8: DETALLE | J8: EXISTENCIAS | M8: RESPONSABLE
D9: CANT. | E9: P.U. | F9: P.T. | G9: CANT. | H9: P.U. | I9: P.T. | J9: CANT. | K9: P.U. | L9: P.T.

Sheet M41
A1: RESTAURANTE CAMINOS DE HERRADURA
A3: KARDEX
A5: Artículo: | B5: ='MATERIA PRIMA Y MATERIALES'!E50 -> #'M41'!A1 | E5: Unidad de medida: | G5: LIBRAS | I5: Codigo: | J5: ='MATERIA PRIMA Y MATERIALES'!D50 -> 1.1.04.41
A6: Método: | B6: PROMEDIO PONDERADO | E6: Fecha de Corte: | G6: =NOW() -> 2010-06-10T17:02:54.760
A8: FECHA | B8: ORDEN DE PRODUCCIÓN | C8: DETALLE | J8: EXISTENCIAS | M8: RESPONSABLE
D9: CANT. | E9: P.U. | F9: P.T. | G9: CANT. | H9: P.U. | I9: P.T. | J9: CANT. | K9: P.U. | L9: P.T.

Sheet M42
A1: RESTAURANTE CAMINOS DE HERRADURA
A3: KARDEX
A5: Artículo: | B5: ='MATERIA PRIMA Y MATERIALES'!E51 -> #'M42'!A1 | E5: Unidad de medida: | G5: LIBRAS | I5: Codigo: | J5: ='MATERIA PRIMA Y MATERIALES'!D51 -> 1.1.04.42
A6: Método: | B6: PROMEDIO PONDERADO | E6: Fecha de Corte: | G6: =NOW() -> 2010-06-10T17:02:54.760
A8: FECHA | B8: ORDEN DE PRODUCCIÓN | C8: DETALLE | J8: EXISTENCIAS | M8: RESPONSABLE
D9: CANT. | E9: P.U. | F9: P.T. | G9: CANT. | H9: P.U. | I9: P.T. | J9: CANT. | K9: P.U. | L9: P.T.

Sheet M43
A1: RESTAURANTE CAMINOS DE HERRADURA
A3: KARDEX
A5: Artículo: | B5: ='MATERIA PRIMA Y MATERIALES'!E52 -> #'M43'!A1 | E5: Unidad de medida: | G5: LIBRAS | I5: Codigo: | J5: ='MATERIA PRIMA Y MATERIALES'!D52 -> 1.1.04.43
A6: Método: | B6: PROMEDIO PONDERADO | E6: Fecha de Corte: | G6: =NOW() -> 2010-06-10T17:02:54.760
A8: FECHA | B8: ORDEN DE PRODUCCIÓN | C8: DETALLE | J8: EXISTENCIAS | M8: RESPONSABLE
D9: CANT. | E9: P.U. | F9: P.T. | G9: CANT. | H9: P.U. | I9: P.T. | J9: CANT. | K9: P.U. | L9: P.T.

Sheet M44
A1: RESTAURANTE CAMINOS DE HERRADURA
A3: KARDEX
A5: Artículo: | B5: ='MATERIA PRIMA Y MATERIALES'!E53 -> #'M44'!A1 | E5: Unidad de medida: | G5: LIBRAS | I5: Codigo: | J5: ='MATERIA PRIMA Y MATERIALES'!D53 -> 1.1.04.44
A6: Método: | B6: PROMEDIO PONDERADO | E6: Fecha de Corte: | G6: =NOW() -> 2010-06-10T17:02:54.760
A8: FECHA | B8: ORDEN DE PRODUCCIÓN | C8: DETALLE | J8: EXISTENCIAS | M8: RESPONSABLE
D9: CANT. | E9: P.U. | F9: P.T. | G9: CANT. | H9: P.U. | I9: P.T. | J9: CANT. | K9: P.U. | L9: P.T.

Sheet M45
A1: RESTAURANTE CAMINOS DE HERRADURA
A3: KARDEX
A5: Artículo: | B5: ='MATERIA PRIMA Y MATERIALES'!E54 -> #'M45'!A1 | E5: Unidad de medida: | G5: LIBRAS | I5: Codigo: | J5: ='MATERIA PRIMA Y MATERIALES'!D54 -> 1.1.04.45
A6: Método: | B6: PROMEDIO PONDERADO | E6: Fecha de Corte: | G6: =NOW() -> 2010-06-10T17:02:54.760
A8: FECHA | B8: ORDEN DE PRODUCCIÓN | C8: DETALLE | J8: EXISTENCIAS | M8: RESPONSABLE
D9: CANT. | E9: P.U. | F9: P.T. | G9: CANT. | H9: P.U. | I9: P.T. | J9: CANT. | K9: P.U. | L9: P.T.

Sheet M46
A1: RESTAURANTE CAMINOS DE HERRADURA
A3: KARDEX
A5: Artículo: | B5: ='MATERIA PRIMA Y MATERIALES'!E55 -> #'M46'!A1 | E5: Unidad de medida: | G5: LIBRAS | I5: Codigo: | J5: ='MATERIA PRIMA Y MATERIALES'!D55 -> 1.1.04.46
A6: Método: | B6: PROMEDIO PONDERADO | E6: Fecha de Corte: | G6: =NOW() -> 2010-06-10T17:02:54.760
A8: FECHA | B8: ORDEN DE PRODUCCIÓN | C8: DETALLE | J8: EXISTENCIAS | M8: RESPONSABLE
D9: CANT. | E9: P.U. | F9: P.T. | G9: CANT. | H9: P.U. | I9: P.T. | J9: CANT. | K9: P.U. | L9: P.T.

Sheet M47
A1: RESTAURANTE CAMINOS DE HERRADURA
A3: KARDEX
A5: Artículo: | B5: ='MATERIA PRIMA Y MATERIALES'!E56 -> #'M47'!A1 | E5: Unidad de medida: | G5: LIBRAS | I5: Codigo: | J5: ='MATERIA PRIMA Y MATERIALES'!D56 -> 1.1.04.47
A6: Método: | B6: PROMEDIO PONDERADO | E6: Fecha de Corte: | G6: =NOW() -> 2010-06-10T17:02:54.760
A8: FECHA | B8: ORDEN DE PRODUCCIÓN | C8: DETALLE | J8: EXISTENCIAS | M8: RESPONSABLE
D9: CANT. | E9: P.U. | F9: P.T. | G9: CANT. | H9: P.U. | I9: P.T. | J9: CANT. | K9: P.U. | L9: P.T.

Sheet M48
A1: RESTAURANTE CAMINOS DE HERRADURA
A3: KARDEX
A5: Artículo: | B5: ='MATERIA PRIMA Y MATERIALES'!E57 -> #'M48'!A1 | E5: Unidad de medida: | G5: LIBRAS | I5: Codigo: | J5: ='MATERIA PRIMA Y MATERIALES'!D57 -> 1.1.04.48
A6: Método: | B6: PROMEDIO PONDERADO | E6: Fecha de Corte: | G6: =NOW() -> 2010-06-10T17:02:54.760
A8: FECHA | B8: ORDEN DE PRODUCCIÓN | C8: DETALLE | J8: EXISTENCIAS | M8: RESPONSABLE
D9: CANT. | E9: P.U. | F9: P.T. | G9: CANT. | H9: P.U. | I9: P.T. | J9: CANT. | K9: P.U. | L9: P.T.

Sheet M49
A1: RESTAURANTE CAMINOS DE HERRADURA
A3: KARDEX
A5: Artículo: | B5: ='MATERIA PRIMA Y MATERIALES'!E58 -> #'M49'!A1 | E5: Unidad de medida: | G5: LIBRAS | I5: Codigo: | J5: ='MATERIA PRIMA Y MATERIALES'!D58 -> 1.1.04.49
A6: Método: | B6: PROMEDIO PONDERADO | E6: Fecha de Corte: | G6: =NOW() -> 2010-06-10T17:02:54.760
A8: FECHA | B8: ORDEN DE PRODUCCIÓN | C8: DETALLE | J8: EXISTENCIAS | M8: RESPONSABLE
D9: CANT. | E9: P.U. | F9: P.T. | G9: CANT. | H9: P.U. | I9: P.T. | J9: CANT. | K9: P.U. | L9: P.T.

Sheet M50
A1: RESTAURANTE CAMINOS DE HERRADURA
A3: KARDEX
A5: Artículo: | B5: ='MATERIA PRIMA Y MATERIALES'!E59 -> #'M50'!A1 | E5: Unidad de medida: | G5: LIBRAS | I5: Codigo: | J5: ='MATERIA PRIMA Y MATERIALES'!D59 -> 1.1.04.50
A6: Método: | B6: PROMEDIO PONDERADO | E6: Fecha de Corte: | G6: =NOW() -> 2010-06-10T17:02:54.760
A8: FECHA | B8: ORDEN DE PRODUCCIÓN | C8: DETALLE | J8: EXISTENCIAS | M8: RESPONSABLE
D9: CANT. | E9: P.U. | F9: P.T. | G9: CANT. | H9: P.U. | I9: P.T. | J9: CANT. | K9: P.U. | L9: P.T.

Sheet M51
A1: RESTAURANTE CAMINOS DE HERRADURA
A3: KARDEX
A5: Artículo: | B5: ='MATERIA PRIMA Y MATERIALES'!E60 -> #'M51'!A1 | C5: CODIGO | E5: Unidad de medida: | G5: LIBRAS | I5: Codigo: | J5: ='MATERIA PRIMA Y MATERIALES'!D60 -> 1.1.04.51
A6: Método: | B6: PROMEDIO PONDERADO | E6: Fecha de Corte: | G6: =NOW() -> 2010-06-10T17:02:54.760
A8: FECHA | B8: ORDEN DE PRODUCCIÓN | C8: DETALLE | J8: EXISTENCIAS | M8: RESPONSABLE
D9: CANT. | E9: P.U. | F9: P.T. | G9: CANT. | H9: P.U. | I9: P.T. | J9: CANT. | K9: P.U. | L9: P.T.

Sheet M52
A1: RESTAURANTE CAMINOS DE HERRADURA
A3: KARDEX
A5: Artículo: | B5: ='MATERIA PRIMA Y MATERIALES'!E61 -> #'M52'!A1 | E5: Unidad de medida: | G5: LIBRAS | I5: Codigo: | J5: ='MATERIA PRIMA Y MATERIALES'!D61 -> 1.1.04.52
A6: Método: | B6: PROMEDIO PONDERADO | E6: Fecha de Corte: | G6: =NOW() -> 2010-06-10T17:02:54.760
A8: FECHA | B8: ORDEN DE PRODUCCIÓN | C8: DETALLE | J8: EXISTENCIAS | M8: RESPONSABLE
D9: CANT. | E9: P.U. | F9: P.T. | G9: CANT. | H9: P.U. | I9: P.T. | J9: CANT. | K9: P.U. | L9: P.T.

Sheet M53
A1: RESTAURANTE CAMINOS DE HERRADURA
A3: KARDEX
A5: Artículo: | B5: ='MATERIA PRIMA Y MATERIALES'!E62 -> #'M53'!A1 | E5: Unidad de medida: | G5: LIBRAS | J5: ='MATERIA PRIMA Y MATERIALES'!D62 -> 1.1.04.53
A6: Método: | B6: PROMEDIO PONDERADO | E6: Fecha de Corte: | G6: =NOW() -> 2010-06-10T17:02:54.760
A8: FECHA | B8: ORDEN DE PRODUCCIÓN | C8: DETALLE | J8: EXISTENCIAS | M8: RESPONSABLE
D9: CANT. | E9: P.U. | F9: P.T. | G9: CANT. | H9: P.U. | I9: P.T. | J9: CANT. | K9: P.U. | L9: P.T.

Sheet S1
A1: RESTAURANTE CAMINOS DE HERRADURA
A3: KARDEX
A5: Artículo: | B5: ACEITE | C5: CODIGO | E5: Unidad de medida: | G5: LIBRAS
A6: Método: | B6: PROMEDIO PONDERADO | E6: Fecha de Corte: | G6: =NOW() -> 2010-06-10T17:02:54.760
A8: FECHA | B8: ORDEN DE PRODUCCIÓN | C8: DETALLE | J8: EXISTENCIAS | M8: RESPONSABLE
D9: CANT. | E9: P.U. | F9: P.T. | G9: CANT. | H9: P.U. | I9: P.T. | J9: CANT. | K9: P.U. | L9: P.T.

Sheet S2
A1: RESTAURANTE CAMINOS DE HERRADURA
A3: KARDEX
A5: Artículo: | B5: ACEITE | C5: CODIGO | E5: Unidad de medida: | G5: LIBRAS
A6: Método: | B6: PROMEDIO PONDERADO | E6: Fecha de Corte: | G6: =NOW() -> 2010-06-10T17:02:54.760
A8: FECHA | B8: ORDEN DE PRODUCCIÓN | C8: DETALLE | J8: EXISTENCIAS | M8: RESPONSABLE
D9: CANT. | E9: P.U. | F9: P.T. | G9: CANT. | H9: P.U. | I9: P.T. | J9: CANT. | K9: P.U. | L9: P.T.

Sheet S3
A1: RESTAURANTE CAMINOS DE HERRADURA
A3: KARDEX
A5: Artículo: | B5: ACEITE | C5: CODIGO | E5: Unidad de medida: | G5: LIBRAS
A6: Método: | B6: PROMEDIO PONDERADO | E6: Fecha de Corte: | G6: =NOW() -> 2010-06-10T17:02:54.760
A8: FECHA | B8: ORDEN DE PRODUCCIÓN | C8: DETALLE | J8: EXISTENCIAS | M8: RESPONSABLE
D9: CANT. | E9: P.U. | F9: P.T. | G9: CANT. | H9: P.U. | I9: P.T. | J9: CANT. | K9: P.U. | L9: P.T.

Sheet S4
A1: RESTAURANTE CAMINOS DE HERRADURA
A3: KARDEX
A5: Artículo: | B5: ACEITE | C5: CODIGO | E5: Unidad de medida: | G5: LIBRAS
A6: Método: | B6: PROMEDIO PONDERADO | E6: Fecha de Corte: | G6: =NOW() -> 2010-06-10T17:02:54.760
A8: FECHA | B8: ORDEN DE PRODUCCIÓN | C8: DETALLE | J8: EXISTENCIAS | M8: RESPONSABLE
D9: CANT. | E9: P.U. | F9: P.T. | G9: CANT. | H9: P.U. | I9: P.T. | J9: CANT. | K9: P.U. | L9: P.T.

Sheet S5
A1: RESTAURANTE CAMINOS DE HERRADURA
A3: KARDEX
A5: Artículo: | B5: ACEITE | C5: CODIGO | E5: Unidad de medida: | G5: LIBRAS
A6: Método: | B6: PROMEDIO PONDERADO | E6: Fecha de Corte: | G6: =NOW() -> 2010-06-10T17:02:54.760
A8: FECHA | B8: ORDEN DE PRODUCCIÓN | C8: DETALLE | J8: EXISTENCIAS | M8: RESPONSABLE
D9: CANT. | E9: P.U. | F9: P.T. | G9: CANT. | H9: P.U. | I9: P.T. | J9: CANT. | K9: P.U. | L9: P.T.

Sheet S6
A1: RESTAURANTE CAMINOS DE HERRADURA
A3: KARDEX
A5: Artículo: | B5: ACEITE | C5: CODIGO | E5: Unidad de medida: | G5: LIBRAS
A6: Método: | B6: PROMEDIO PONDERADO | E6: Fecha de Corte: | G6: =NOW() -> 2010-06-10T17:02:54.760
A8: FECHA | B8: ORDEN DE PRODUCCIÓN | C8: DETALLE | J8: EXISTENCIAS | M8: RESPONSABLE
D9: CANT. | E9: P.U. | F9: P.T. | G9: CANT. | H9: P.U. | I9: P.T. | J9: CANT. | K9: P.U. | L9: P.T.

Sheet S7
A1: RESTAURANTE CAMINOS DE HERRADURA
A3: KARDEX
A5: Artículo: | B5: ACEITE | C5: CODIGO | E5: Unidad de medida: | G5: LIBRAS
A6: Método: | B6: PROMEDIO PONDERADO | E6: Fecha de Corte: | G6: =NOW() -> 2010-06-10T17:02:54.760
A8: FECHA | B8: ORDEN DE PRODUCCIÓN | C8: DETALLE | J8: EXISTENCIAS | M8: RESPONSABLE
D9: CANT. | E9: P.U. | F9: P.T. | G9: CANT. | H9: P.U. | I9: P.T. | J9: CANT. | K9: P.U. | L9: P.T.

Sheet S8
A1: RESTAURANTE CAMINOS DE HERRADURA
A3: KARDEX
A5: Artículo: | B5: ACEITE | C5: CODIGO | E5: Unidad de medida: | G5: LIBRAS
A6: Método: | B6: PROMEDIO PONDERADO | E6: Fecha de Corte: | G6: =NOW() -> 2010-06-10T17:02:54.760
A8: FECHA | B8: ORDEN DE PRODUCCIÓN | C8: DETALLE | J8: EXISTENCIAS | M8: RESPONSABLE
D9: CANT. | E9: P.U. | F9: P.T. | G9: CANT. | H9: P.U. | I9: P.T. | J9: CANT. | K9: P.U. | L9: P.T.

Sheet S9
A1: RESTAURANTE CAMINOS DE HERRADURA
A3: KARDEX
A5: Artículo: | B5: ACEITE | C5: CODIGO | E5: Unidad de medida: | G5: LIBRAS
A6: Método: | B6: PROMEDIO PONDERADO | E6: Fecha de Corte: | G6: =NOW() -> 2010-06-10T17:02:54.760
A8: FECHA | B8: ORDEN DE PRODUCCIÓN | C8: DETALLE | J8: EXISTENCIAS | M8: RESPONSABLE
D9: CANT. | E9: P.U. | F9: P.T. | G9: CANT. | H9: P.U. | I9: P.T. | J9: CANT. | K9: P.U. | L9: P.T.

Sheet S10
A1: RESTAURANTE CAMINOS DE HERRADURA
A3: KARDEX
A5: Artículo: | B5: ACEITE | C5: CODIGO | E5: Unidad de medida: | G5: LIBRAS
A6: Método: | B6: PROMEDIO PONDERADO | E6: Fecha de Corte: | G6: =NOW() -> 2010-06-10T17:02:54.760
A8: FECHA | B8: ORDEN DE PRODUCCIÓN | C8: DETALLE | J8: EXISTENCIAS | M8: RESPONSABLE
D9: CANT. | E9: P.U. | F9: P.T. | G9: CANT. | H9: P.U. | I9: P.T. | J9: CANT. | K9: P.U. | L9: P.T.

Sheet S11
A1: RESTAURANTE CAMINOS DE HERRADURA
A3: KARDEX
A5: Artículo: | B5: ACEITE | C5: CODIGO | E5: Unidad de medida: | G5: LIBRAS
A6: Método: | B6: PROMEDIO PONDERADO | E6: Fecha de Corte: | G6: =NOW() -> 2010-06-10T17:02:54.760
A8: FECHA | B8: ORDEN DE PRODUCCIÓN | C8: DETALLE | J8: EXISTENCIAS | M8: RESPONSABLE
D9: CANT. | E9: P.U. | F9: P.T. | G9: CANT. | H9: P.U. | I9: P.T. | J9: CANT. | K9: P.U. | L9: P.T.

Sheet S12
A1: RESTAURANTE CAMINOS DE HERRADURA
A3: KARDEX
A5: Artículo: | B5: ACEITE | C5: CODIGO | E5: Unidad de medida: | G5: LIBRAS
A6: Método: | B6: PROMEDIO PONDERADO | E6: Fecha de Corte: | G6: =NOW() -> 2010-06-10T17:02:54.760
A8: FECHA | B8: ORDEN DE PRODUCCIÓN | C8: DETALLE | J8: EXISTENCIAS | M8: RESPONSABLE
D9: CANT. | E9: P.U. | F9: P.T. | G9: CANT. | H9: P.U. | I9: P.T. | J9: CANT. | K9: P.U. | L9: P.T.

Sheet S13
A1: RESTAURANTE CAMINOS DE HERRADURA
A3: KARDEX
A5: Artículo: | B5: ACEITE | C5: CODIGO | E5: Unidad de medida: | G5: LIBRAS
A6: Método: | B6: PROMEDIO PONDERADO | E6: Fecha de Corte: | G6: =NOW() -> 2010-06-10T17:02:54.760
A8: FECHA | B8: ORDEN DE PRODUCCIÓN | C8: DETALLE | J8: EXISTENCIAS | M8: RESPONSABLE
D9: CANT. | E9: P.U. | F9: P.T. | G9: CANT. | H9: P.U. | I9: P.T. | J9: CANT. | K9: P.U. | L9: P.T.

Sheet S14
A1: RESTAURANTE CAMINOS DE HERRADURA
A3: KARDEX
A5: Artículo: | B5: ACEITE | C5: CODIGO | E5: Unidad de medida: | G5: LIBRAS
A6: Método: | B6: PROMEDIO PONDERADO | E6: Fecha de Corte: | G6: =NOW() -> 2010-06-10T17:02:54.760
A8: FECHA | B8: ORDEN DE PRODUCCIÓN | C8: DETALLE | J8: EXISTENCIAS | M8: RESPONSABLE
D9: CANT. | E9: P.U. | F9: P.T. | G9: CANT. | H9: P.U. | I9: P.T. | J9: CANT. | K9: P.U. | L9: P.T.

Sheet S15
A1: RESTAURANTE CAMINOS DE HERRADURA
A3: KARDEX
A5: Artículo: | B5: ACEITE | C5: CODIGO | E5: Unidad de medida: | G5: LIBRAS
A6: Método: | B6: PROMEDIO PONDERADO | E6: Fecha de Corte: | G6: =NOW() -> 2010-06-10T17:02:54.760
A8: FECHA | B8: ORDEN DE PRODUCCIÓN | C8: DETALLE | J8: EXISTENCIAS | M8: RESPONSABLE
D9: CANT. | E9: P.U. | F9: P.T. | G9: CANT. | H9: P.U. | I9: P.T. | J9: CANT. | K9: P.U. | L9: P.T.

Sheet S16
A1: RESTAURANTE CAMINOS DE HERRADURA
A3: KARDEX
A5: Artículo: | B5: ACEITE | C5: CODIGO | E5: Unidad de medida: | G5: LIBRAS
A6: Método: | B6: PROMEDIO PONDERADO | E6: Fecha de Corte: | G6: =NOW() -> 2010-06-10T17:02:54.760
A8: FECHA | B8: ORDEN DE PRODUCCIÓN | C8: DETALLE | J8: EXISTENCIAS | M8: RESPONSABLE
D9: CANT. | E9: P.U. | F9: P.T. | G9: CANT. | H9: P.U. | I9: P.T. | J9: CANT. | K9: P.U. | L9: P.T.

Sheet S17
A1: RESTAURANTE CAMINOS DE HERRADURA
A3: KARDEX
A5: Artículo: | B5: ACEITE | C5: CODIGO | E5: Unidad de medida: | G5: LIBRAS
A6: Método: | B6: PROMEDIO PONDERADO | E6: Fecha de Corte: | G6: =NOW() -> 2010-06-10T17:02:54.760
A8: FECHA | B8: ORDEN DE PRODUCCIÓN | C8: DETALLE | J8: EXISTENCIAS | M8: RESPONSABLE
D9: CANT. | E9: P.U. | F9: P.T. | G9: CANT. | H9: P.U. | I9: P.T. | J9: CANT. | K9: P.U. | L9: P.T.

Sheet S18
A1: RESTAURANTE CAMINOS DE HERRADURA
A3: KARDEX
A5: Artículo: | B5: ACEITE | C5: CODIGO | E5: Unidad de medida: | G5: LIBRAS
A6: Método: | B6: PROMEDIO PONDERADO | E6: Fecha de Corte: | G6: =NOW() -> 2010-06-10T17:02:54.760
A8: FECHA | B8: ORDEN DE PRODUCCIÓN | C8: DETALLE | J8: EXISTENCIAS | M8: RESPONSABLE
D9: CANT. | E9: P.U. | F9: P.T. | G9: CANT. | H9: P.U. | I9: P.T. | J9: CANT. | K9: P.U. | L9: P.T.

Sheet S19
A1: RESTAURANTE CAMINOS DE HERRADURA
A3: KARDEX
A5: Artículo: | B5: ACEITE | C5: CODIGO | E5: Unidad de medida: | G5: LIBRAS
A6: Método: | B6: PROMEDIO PONDERADO | E6: Fecha de Corte: | G6: =NOW() -> 2010-06-10T17:02:54.760
A8: FECHA | B8: ORDEN DE PRODUCCIÓN | C8: DETALLE | J8: EXISTENCIAS | M8: RESPONSABLE
D9: CANT. | E9: P.U. | F9: P.T. | G9: CANT. | H9: P.U. | I9: P.T. | J9: CANT. | K9: P.U. | L9: P.T.

Sheet S20
A1: RESTAURANTE CAMINOS DE HERRADURA
A3: KARDEX
A5: Artículo: | B5: ACEITE | C5: CODIGO | E5: Unidad de medida: | G5: LIBRAS
A6: Método: | B6: PROMEDIO PONDERADO | E6: Fecha de Corte: | G6: =NOW() -> 2010-06-10T17:02:54.760
A8: FECHA | B8: ORDEN DE PRODUCCIÓN | C8: DETALLE | J8: EXISTENCIAS | M8: RESPONSABLE
D9: CANT. | E9: P.U. | F9: P.T. | G9: CANT. | H9: P.U. | I9: P.T. | J9: CANT. | K9: P.U. | L9: P.T.

Sheet S21
A1: RESTAURANTE CAMINOS DE HERRADURA
A3: KARDEX
A5: Artículo: | B5: ACEITE | C5: CODIGO | E5: Unidad de medida: | G5: LIBRAS
A6: Método: | B6: PROMEDIO PONDERADO | E6: Fecha de Corte: | G6: =NOW() -> 2010-06-10T17:02:54.760
A8: FECHA | B8: ORDEN DE PRODUCCIÓN | C8: DETALLE | J8: EXISTENCIAS | M8: RESPONSABLE
D9: CANT. | E9: P.U. | F9: P.T. | G9: CANT. | H9: P.U. | I9: P.T. | J9: CANT. | K9: P.U. | L9: P.T.

Sheet S22
A1: RESTAURANTE CAMINOS DE HERRADURA
A3: KARDEX
A5: Artículo: | B5: ACEITE | C5: CODIGO | E5: Unidad de medida: | G5: LIBRAS
A6: Método: | B6: PROMEDIO PONDERADO | E6: Fecha de Corte: | G6: =NOW() -> 2010-06-10T17:02:54.760
A8: FECHA | B8: ORDEN DE PRODUCCIÓN | C8: DETALLE | J8: EXISTENCIAS | M8: RESPONSABLE
D9: CANT. | E9: P.U. | F9: P.T. | G9: CANT. | H9: P.U. | I9: P.T. | J9: CANT. | K9: P.U. | L9: P.T.

Sheet S23
A1: RESTAURANTE CAMINOS DE HERRADURA
A3: KARDEX
A5: Artículo: | B5: ACEITE | C5: CODIGO | E5: Unidad de medida: | G5: LIBRAS
A6: Método: | B6: PROMEDIO PONDERADO | E6: Fecha de Corte: | G6: =NOW() -> 2010-06-10T17:02:54.760
A8: FECHA | B8: ORDEN DE PRODUCCIÓN | C8: DETALLE | J8: EXISTENCIAS | M8: RESPONSABLE
D9: CANT. | E9: P.U. | F9: P.T. | G9: CANT. | H9: P.U. | I9: P.T. | J9: CANT. | K9: P.U. | L9: P.T.

Sheet INFORME DE INVENTARIOS
B2: RESTAURANTE CAMINOS DE HERRADURA | H2: ACEITE | J2: LENTEJAS
H3: ACELGA | J3: LIMON
B4: INFORME DE INVENTARIOS - MP | H4: ACHOTE | J4: LOMO
H5: AGUACATE | J5: MAGGI
B6: Artículo: | C6: TODOS | D6: Unidad de medida: | E6: Libras | H6: AJO | J6: MAIZ
D7: Fecha de corte: | E7: =NOW() -> 2010-06-10T17:02:54.760 | H7: APANADURA | J7: MANTECA
H8: APIO | J8: MANTEQUILLA
B9: CODIGO | C9: PRODUCTO | D9: EXISTENCIAS | H9: ARROZ | J9: MARACUYA
D10: CANT. | E10: P.U. | F10: P.T. | H10: ARVEJA | J10: MELLOCOS
B11: ='MATERIA PRIMA Y MATERIALES'!D10 -> 1.1.04.01 | C11: =IF(MID('M1'!B5,1,1)="#","",'M1'!B5) -> ARROZ | D11: ='M1'!J10 -> 79.80 | E11: ='M1'!K10 -> $0.35 | F11: ='M1'!L10 -> $27.93 | H11: AZUCAR | J11: MORA
B12: ='MATERIA PRIMA Y MATERIALES'!D11 -> 1.1.04.02 | C12: =IF(MID('M2'!B5,1,1)="#","",'M2'!B5) -> ACEITE | D12: ='M2'!J10 -> 65.00 | E12: ='M2'!K10 -> $0.76 | F12: ='M2'!L10 -> $49.40 | H12: BROCOLI | J12: MOROCHO | K12: AVENA | M12: MELON
B13: ='MATERIA PRIMA Y MATERIALES'!D12 -> 1.1.04.03 | C13: =IF(MID('M3'!B5,1,1)="#","",'M3'!B5) -> AZUCAR | D13: ='M3'!J10 -> 50.50 | E13: ='M3'!K10 -> $0.33 | F13: ='M3'!L10 -> $16.67 | H13: CALABAZA | J13: MORTADELA
B14: ='MATERIA PRIMA Y MATERIALES'!D13 -> 1.1.04.04 | C14: =IF(MID('M4'!B5,1,1)="#","",'M4'!B5) -> LOMO | D14: ='M4'!J10 -> 11.00 | E14: ='M4'!K10 -> $2.00 | F14: ='M4'!L10 -> $22.00 | H14: CAMARONES | J14: MOSTAZA
B15: ='MATERIA PRIMA Y MATERIALES'!D14 -> 1.1.04.05 | C15: =IF(MID('M5'!B5,1,1)="#","",'M5'!B5) -> PAPAS | D15: ='M5'!J10 -> 200.00 | E15: ='M5'!K10 -> $0.12 | F15: ='M5'!L10 -> $24.00 | H15: CANELA | J15: NARANJILLA
B16: ='MATERIA PRIMA Y MATERIALES'!D15 -> 1.1.04.06 | C16: =IF(MID('M6'!B5,1,1)="#","",'M6'!B5) -> POLLO | D16: ='M6'!J10 -> 0.00 | E16: ='M6'!K10 -> 0 | F16: ='M6'!L10 -> 0 | H16: CANGUIL | J16: NUEZ MOSCADA
B17: ='MATERIA PRIMA Y MATERIALES'!D16 -> 1.1.04.07 | C17: =IF(MID('M7'!B5,1,1)="#","",'M7'!B5) ->  | D17: ='M7'!J10 -> 0.00 | E17: ='M7'!K10 -> 0 | F17: ='M7'!L10 -> 0 | H17: CARNE MOLIDA | J17: OREGANO
B18: ='MATERIA PRIMA Y MATERIALES'!D17 -> 1.1.04.08 | C18: =IF(MID('M8'!B5,1,1)="#","",'M8'!B5) ->  | D18: ='M8'!J10 -> 0.00 | E18: ='M8'!K10 -> 0 | F18: ='M8'!L10 -> 0 | H18: CEBOLLA | J18: PAPAS
B19: ='MATERIA PRIMA Y MATERIALES'!D18 -> 1.1.04.09 | C19: =IF(MID('M9'!B5,1,1)="#","",'M9'!B5) ->  | D19: ='M9'!J10 -> 0.00 | E19: ='M9'!K10 -> 0 | F19: ='M9'!L10 -> 0 | H19: CEBOLLA LARGA | J19: PAPAYA
B20: ='MATERIA PRIMA Y MATERIALES'!D19 -> 1.1.04.10 | C20: =IF(MID('M10'!B5,1,1)="#","",'M10'!B5) ->  | D20: ='M10'!J10 -> 0.00 | E20: ='M10'!K10 -> 0 | F20: ='M10'!L10 -> 0 | H20: CEDRON | J20: PEPINILLO
B21: ='MATERIA PRIMA Y MATERIALES'!D20 -> 1.1.04.11 | C21: =IF(MID('M11'!B5,1,1)="#","",'M11'!B5) ->  | D21: ='M11'!J10 -> 0.00 | E21: ='M11'!K10 -> 0 | F21: ='M11'!L10 -> 0 | H21: CHAMPIÑONES | J21: PEREJIL
B22: ='MATERIA PRIMA Y MATERIALES'!D21 -> 1.1.04.12 | C22: =IF(MID('M12'!B5,1,1)="#","",'M12'!B5) ->  | D22: ='M12'!J10 -> 0.00 | E22: ='M12'!K10 -> 0 | F22: ='M12'!L10 -> 0 | H22: CHANCHO | J22: PESCADO
B23: ='MATERIA PRIMA Y MATERIALES'!D22 -> 1.1.04.13 | C23: =IF(MID('M13'!B5,1,1)="#","",'M13'!B5) ->  | D23: ='M13'!J10 -> 0.00 | E23: ='M13'!K10 -> 0 | F23: ='M13'!L10 -> 0 | H23: CHOCHOS | J23: PIMIENTA
B24: ='MATERIA PRIMA Y MATERIALES'!D23 -> 1.1.04.14 | C24: =IF(MID('M14'!B5,1,1)="#","",'M14'!B5) ->  | D24: ='M14'!J10 -> 0.00 | E24: ='M14'!K10 -> 0 | F24: ='M14'!L10 -> 0 | H24: CHUCHUCA | J24: PIMIENTA
B25: ='MATERIA PRIMA Y MATERIALES'!D24 -> 1.1.04.15 | C25: =IF(MID('M15'!B5,1,1)="#","",'M15'!B5) ->  | D25: ='M15'!J10 -> 0.00 | E25: ='M15'!K10 -> 0 | F25: ='M15'!L10 -> 0 | H25: CHULETA | J25: PIMIENTOS
B26: ='MATERIA PRIMA Y MATERIALES'!D25 -> 1.1.04.16 | C26: =IF(MID('M16'!B5,1,1)="#","",'M16'!B5) ->  | D26: ='M16'!J10 -> 0.00 | E26: ='M16'!K10 -> 0 | F26: ='M16'!L10 -> 0 | H26: CLAVOS DE OLOR | J26: PIÑA
B27: ='MATERIA PRIMA Y MATERIALES'!D26 -> 1.1.04.17 | C27: =IF(MID('M17'!B5,1,1)="#","",'M17'!B5) ->  | D27: ='M17'!J10 -> 0.00 | E27: ='M17'!K10 -> 0 | F27: ='M17'!L10 -> 0 | H27: COL | J27: PLATANO MADURO
B28: ='MATERIA PRIMA Y MATERIALES'!D27 -> 1.1.04.18 | C28: =IF(MID('M18'!B5,1,1)="#","",'M18'!B5) ->  | D28: ='M18'!J10 -> 0.00 | E28: ='M18'!K10 -> 0 | F28: ='M18'!L10 -> 0 | H28: COL MORADA | J28: POLLOS
B29: ='MATERIA PRIMA Y MATERIALES'!D28 -> 1.1.04.19 | C29: =IF(MID('M19'!B5,1,1)="#","",'M19'!B5) ->  | D29: ='M19'!J10 -> 0.00 | E29: ='M19'!K10 -> 0 | F29: ='M19'!L10 -> 0 | H29: COLIFLOR | J29: QUESO
B30: ='MATERIA PRIMA Y MATERIALES'!D29 -> 1.1.04.20 | C30: =IF(MID('M20'!B5,1,1)="#","",'M20'!B5) ->  | D30: ='M20'!J10 -> 0.00 | E30: ='M20'!K10 -> 0 | F30: ='M20'!L10 -> 0 | H30: COMINO | J30: QUINOA
B31: ='MATERIA PRIMA Y MATERIALES'!D30 -> 1.1.04.21 | C31: =IF(MID('M21'!B5,1,1)="#","",'M21'!B5) ->  | D31: ='M21'!J10 -> 0.00 | E31: ='M21'!K10 -> 0 | F31: ='M21'!L10 -> 0 | H31: CORVINA | J31: RABANO
B32: ='MATERIA PRIMA Y MATERIALES'!D31 -> 1.1.04.22 | C32: =IF(MID('M22'!B5,1,1)="#","",'M22'!B5) ->  | D32: ='M22'!J10 -> 0.00 | E32: ='M22'!K10 -> 0 | F32: ='M22'!L10 -> 0 | H32: CREMA DE LECHE | J32: REMOLACHA
B33: ='MATERIA PRIMA Y MATERIALES'!D32 -> 1.1.04.23 | C33: =IF(MID('M23'!B5,1,1)="#","",'M23'!B5) ->  | D33: ='M23'!J10 -> 0.00 | E33: ='M23'!K10 -> 0 | F33: ='M23'!L10 -> 0 | H33: CULANTRO | J33: SAL
B34: ='MATERIA PRIMA Y MATERIALES'!D33 -> 1.1.04.24 | C34: =IF(MID('M24'!B5,1,1)="#","",'M24'!B5) ->  | D34: ='M24'!J10 -> 0.00 | E34: ='M24'!K10 -> 0 | F34: ='M24'!L10 -> 0 | H34: FIDEOS | J34: SALCHICHAS
B35: ='MATERIA PRIMA Y MATERIALES'!D34 -> 1.1.04.25 | C35: =IF(MID('M25'!B5,1,1)="#","",'M25'!B5) ->  | D35: ='M25'!J10 -> 0.00 | E35: ='M25'!K10 -> 0 | F35: ='M25'!L10 -> 0 | H35: FREJOL | J35: SALSA CHINA
B36: ='MATERIA PRIMA Y MATERIALES'!D35 -> 1.1.04.26 | C36: =IF(MID('M26'!B5,1,1)="#","",'M26'!B5) ->  | D36: ='M26'!J10 -> 0.00 | E36: ='M26'!K10 -> 0 | F36: ='M26'!L10 -> 0 | H36: GUANABANA | J36: SALSA INGLESA
B37: ='MATERIA PRIMA Y MATERIALES'!D36 -> 1.1.04.27 | C37: =IF(MID('M27'!B5,1,1)="#","",'M27'!B5) ->  | D37: ='M27'!J10 -> 0.00 | E37: ='M27'!K10 -> 0 | F37: ='M27'!L10 -> 0 | H37: GUAYABA | J37: SANDIA
B38: ='MATERIA PRIMA Y MATERIALES'!D37 -> 1.1.04.28 | C38: =IF(MID('M28'!B5,1,1)="#","",'M28'!B5) ->  | D38: ='M28'!J10 -> 0.00 | E38: ='M28'!K10 -> 0 | F38: ='M28'!L10 -> 0 | H38: HABAS | J38: SANGRE
B39: ='MATERIA PRIMA Y MATERIALES'!D38 -> 1.1.04.29 | C39: =IF(MID('M29'!B5,1,1)="#","",'M29'!B5) ->  | D39: ='M29'!J10 -> 0.00 | E39: ='M29'!K10 -> 0 | F39: ='M29'!L10 -> 0 | H39: HARINA | J39: TALLARIN
B40: ='MATERIA PRIMA Y MATERIALES'!D39 -> 1.1.04.30 | C40: =IF(MID('M30'!B5,1,1)="#","",'M30'!B5) ->  | D40: ='M30'!J10 -> 0.00 | E40: ='M30'!K10 -> 0 | F40: ='M30'!L10 -> 0 | H40: HIERBA LUISA | J40: TOMATE DE ARBOL
B41: ='MATERIA PRIMA Y MATERIALES'!D40 -> 1.1.04.31 | C41: =IF(MID('M31'!B5,1,1)="#","",'M31'!B5) ->  | D41: ='M31'!J10 -> 0.00 | E41: ='M31'!K10 -> 0 | F41: ='M31'!L10 -> 0 | H41: HIGADO | J41: TOMATE RIÑON
B42: ='MATERIA PRIMA Y MATERIALES'!D41 -> 1.1.04.32 | C42: =IF(MID('M32'!B5,1,1)="#","",'M32'!B5) ->  | D42: ='M32'!J10 -> 0.00 | E42: ='M32'!K10 -> 0 | F42: ='M32'!L10 -> 0 | H42: HUEVOS | J42: TOSINO
B43: ='MATERIA PRIMA Y MATERIALES'!D42 -> 1.1.04.33 | C43: =IF(MID('M33'!B5,1,1)="#","",'M33'!B5) ->  | D43: ='M33'!J10 -> 0.00 | E43: ='M33'!K10 -> 0 | F43: ='M33'!L10 -> 0 | H43: JAMON | J43: VAINITA
B44: ='MATERIA PRIMA Y MATERIALES'!D43 -> 1.1.04.34 | C44: =IF(MID('M34'!B5,1,1)="#","",'M34'!B5) ->  | D44: ='M34'!J10 -> 0.00 | E44: ='M34'!K10 -> 0 | F44: ='M34'!L10 -> 0 | H44: LECHE | J44: VERDE
B45: ='MATERIA PRIMA Y MATERIALES'!D44 -> 1.1.04.35 | C45: =IF(MID('M35'!B5,1,1)="#","",'M35'!B5) ->  | D45: ='M35'!J10 -> 0.00 | E45: ='M35'!K10 -> 0 | F45: ='M35'!L10 -> 0 | H45: LECHUGA | J45: YERBA BUENA
B46: ='MATERIA PRIMA Y MATERIALES'!D45 -> 1.1.04.36 | C46: =IF(MID('M36'!B5,1,1)="#","",'M36'!B5) ->  | D46: ='M36'!J10 -> 0.00 | E46: ='M36'!K10 -> 0 | F46: ='M36'!L10 -> 0 | H46: LENGUA | J46: YUCA
B47: ='MATERIA PRIMA Y MATERIALES'!D46 -> 1.1.04.37 | C47: =IF(MID('M37'!B5,1,1)="#","",'M37'!B5) ->  | D47: ='M37'!J10 -> 0.00 | E47: ='M37'!K10 -> 0 | F47: ='M37'!L10 -> 0 | J47: ZANAHORIA BLANCA
B48: ='MATERIA PRIMA Y MATERIALES'!D47 -> 1.1.04.38 | C48: =IF(MID('M38'!B5,1,1)="#","",'M38'!B5) ->  | D48: ='M38'!J10 -> 0.00 | E48: ='M38'!K10 -> 0 | F48: ='M38'!L10 -> 0 | J48: ZANAHORIA AMARILLA
B49: ='MATERIA PRIMA Y MATERIALES'!D48 -> 1.1.04.39 | C49: =IF(MID('M39'!B5,1,1)="#","",'M39'!B5) ->  | D49: ='M39'!J10 -> 0.00 | E49: ='M39'!K10 -> 0 | F49: ='M39'!L10 -> 0
B50: ='MATERIA PRIMA Y MATERIALES'!D49 -> 1.1.04.40 | C50: =IF(MID('M40'!B5,1,1)="#","",'M40'!B5) ->  | D50: ='M40'!J10 -> 0.00 | E50: ='M40'!K10 -> 0 | F50: ='M40'!L10 -> 0
B51: ='MATERIA PRIMA Y MATERIALES'!D50 -> 1.1.04.41 | C51: =IF(MID('M41'!B5,1,1)="#","",'M41'!B5) ->  | D51: ='M41'!J10 -> 0.00 | E51: ='M41'!K10 -> 0 | F51: ='M41'!L10 -> 0
B52: ='MATERIA PRIMA Y MATERIALES'!D51 -> 1.1.04.42 | C52: =IF(MID('M42'!B5,1,1)="#","",'M42'!B5) ->  | D52: ='M42'!J10 -> 0.00 | E52: ='M42'!K10 -> 0 | F52: ='M42'!L10 -> 0
B53: ='MATERIA PRIMA Y MATERIALES'!D52 -> 1.1.04.43 | C53: =IF(MID('M43'!B5,1,1)="#","",'M43'!B5) ->  | D53: ='M43'!J10 -> 0.00 | E53: ='M43'!K10 -> 0 | F53: ='M43'!L10 -> 0
B54: ='MATERIA PRIMA Y MATERIALES'!D53 -> 1.1.04.44 | C54: =IF(MID('M44'!B5,1,1)="#","",'M44'!B5) ->  | D54: ='M44'!J10 -> 0.00 | E54: ='M44'!K10 -> 0 | F54: ='M44'!L10 -> 0
B55: ='MATERIA PRIMA Y MATERIALES'!D54 -> 1.1.04.45 | C55: =IF(MID('M45'!B5,1,1)="#","",'M45'!B5) ->  | D55: ='M45'!J10 -> 0.00 | E55: ='M45'!K10 -> 0 | F55: ='M45'!L10 -> 0
B56: ='MATERIA PRIMA Y MATERIALES'!D55 -> 1.1.04.46 | C56: =IF(MID('M46'!B5,1,1)="#","",'M46'!B5) ->  | D56: ='M46'!J10 -> 0.00 | E56: ='M46'!K10 -> 0 | F56: ='M46'!L10 -> 0
B57: ='MATERIA PRIMA Y MATERIALES'!D56 -> 1.1.04.47 | C57: =IF(MID('M47'!B5,1,1)="#","",'M47'!B5) ->  | D57: ='M47'!J10 -> 0.00 | E57: ='M47'!K10 -> 0 | F57: ='M47'!L10 -> 0
B58: ='MATERIA PRIMA Y MATERIALES'!D57 -> 1.1.04.48 | C58: =IF(MID('M48'!B5,1,1)="#","",'M48'!B5) ->  | D58: ='M48'!J10 -> 0.00 | E58: ='M48'!K10 -> 0 | F58: ='M48'!L10 -> 0
B59: ='MATERIA PRIMA Y MATERIALES'!D58 -> 1.1.04.49 | C59: =IF(MID('M49'!B5,1,1)="#","",'M49'!B5) ->  | D59: ='M49'!J10 -> 0.00 | E59: ='M49'!K10 -> 0 | F59: ='M49'!L10 -> 0
B60: ='MATERIA PRIMA Y MATERIALES'!D59 -> 1.1.04.50 | C60: =IF(MID('M50'!B5,1,1)="#","",'M50'!B5) ->  | D60: ='M50'!J10 -> 0.00 | E60: ='M50'!K10 -> 0 | F60: ='M50'!L10 -> 0
B61: ='MATERIA PRIMA Y MATERIALES'!D60 -> 1.1.04.51 | C61: =IF(MID('M51'!B5,1,1)="#","",'M51'!B5) ->  | D61: ='M51'!J10 -> 0.00 | E61: ='M51'!K10 -> 0 | F61: ='M51'!L10 -> 0
B62: ='MATERIA PRIMA Y MATERIALES'!D61 -> 1.1.04.52 | C62: =IF(MID('M52'!B5,1,1)="#","",'M52'!B5) ->  | D62: ='M52'!J10 -> 0.00 | E62: ='M52'!K10 -> 0 | F62: ='M52'!L10 -> 0
F63: =SUM(F11:F62) -> $140.00

Sheet REPORTES
A1: RESTAURANTE CAMINOS DE HERRADURA
A3: REPORTE DE INGRESOS Y REQUISICIONES
A5: Unidad de medida: | C5: LIBRAS
A6: Fecha de Corte: | C6: =NOW() -> 2010-06-10T17:02:54.760
A8: FECHA | B8: ORDEN DE PRODUCCIÓN | C8: DETALLE | D8: ENTRADAS | G8: SALIDAS
D9: CANT. | E9: P.U. | F9: P.T. | G9: CANT. | H9: P.U. | I9: P.T.
D12: TOTAL | F12: =SUM(F10:F11) -> 0 | G12: TOTAL | I12: =SUM(I10:I11) -> 0 | J12: =F12-I12 -> 0
